bitfinex/quotes_ETHUSD_20250129
["timestamp","ask_amount","ask_price","bid_price","bid_amount"]
[1738155457531,4.00843,3119.8,3119.2,3.20592]
[1738155457741,4.00843,3119.8,3119.5,0.05235722]
[1738155457938,5.02979,3119.8,3119.2,3.20592]
[1738155458138,5.02979,3119.8,3119.1,0.8317]
[1738155458139,3.20543,3119.7,3119.6,0.05231574]
[1738155458362,3.20543,3119.7,3119.1,0.8317]
[1738155458553,3.20543,3119.7,3119.6,0.05231574]
[1738155458853,3.20543,3119.7,3119.1,0.8317]
[1738155459057,3.20543,3119.7,3119.6,0.05231574]
[1738155459214,7.29720939,3119.7,3119.1,0.8317]
[1738155459418,6.41094,3119.7,3119.2,0.0524817]
[1738155459864,0.8031,3119.8,3119.2,3.2584117]
[1738155460053,0.8031,3119.8,3119.2,6.4642917]
[1738155460054,3.0,3119.7,3119.2,6.4642917]
[1738155460522,3.0,3119.7,3119.2,3.2583617]
[1738155461064,3.20547,3119.7,3119.2,3.2583617]
[1738155461729,3.0,3119.8,3119.2,3.2583217]
[1738155462070,6.20533,3119.8,3119.3,3.20577]
[1738155462664,3.0,3119.8,3119.4,0.05240917]
[1738155463665,3.0,3119.8,3119.4,3.25813917]
[1738155464663,3.0,3119.8,3119.5,0.7744]
[1738155464828,3.0,3119.8,3119.5,0.82676768]
[1738155466063,1.98395161,3119.6,3119.5,0.82676768]
[1738155466864,1.98395161,3119.6,3119.5,4.03240768]
[1738155467046,1.98395161,3119.6,3119.5,0.82676768]
[1738155471589,1.98395161,3119.6,3119.5,0.05236768]
[1738155471747,6.20533,3119.8,3119.5,0.05236768]
[1738155471953,6.20533,3119.8,3119.3,0.7985]
[1738155472168,6.20533,3119.8,3119.6,0.05231051]
[1738155472467,6.20533,3119.8,3119.7,0.05226902]
[1738155472831,6.20533,3119.8,3119.3,4.00429]
[1738155473027,6.20533,3119.8,3119.4,0.05239348]
[1738155473232,9.41074,3119.8,3119.4,0.05239348]
[1738155473861,6.20533,3119.8,3119.4,0.05239348]
[1738155474770,1.98378033,3119.5,3119.4,0.05239348]
[1738155477394,1.98378033,3119.5,3119.4,3.25813348]
[1738155477596,1.98378033,3119.5,3119.4,3.98438483]
[1738155477749,1.98378033,3119.5,3119.4,0.77864483]
[1738155480857,1.98378033,3119.5,3119.4,6.13051587]
[1738155481069,1.98378033,3119.5,3119.4,6.09846032]
[1738155483459,1.98378033,3119.7,3119.6,3.20553]
[1738155483659,1.98378033,3119.7,3119.6,5.64965654]
[1738155483896,1.98378033,3119.7,3119.6,5.70183639]
[1738155484271,1.98378033,3119.7,3119.6,6.25933639]
[1738155484478,1.98378033,3119.7,3119.6,6.22728534]
[1738155484679,1.98378033,3119.7,3119.6,7.60850949]
[1738155484986,1.98378033,3119.7,3119.6,7.57645956]
[1738155488385,0.8146,3120.9,3120.1,3.20502]
[1738155488386,1.98378033,3120.2,3120.1,3.20502]
[1738155488781,1.98378033,3120.2,3120.1,3.25690362]
[1738155491178,1.98378033,3120.2,3120.1,4.04800362]
[1738155491384,1.98378033,3120.2,3120.1,4.90657353]
[1738155491583,0.8146,3120.9,3120.5,3.2046]
[1738155491972,0.8146,3120.9,3120.6,0.0512739]
[1738155492501,3.8146,3120.9,3120.6,0.0512739]
[1738155493083,0.8306,3121.2,3120.7,3.2044]
[1738155493282,0.8306,3121.2,3121.1,3.20399]
[1738155493466,0.8306,3121.8,3121.4,3.20369]
[1738155493989,0.8306,3121.8,3121.5,0.05062397]
[1738155494574,0.8306,3121.8,3121.5,3.25418397]
[1738155494791,0.8306,3121.8,3121.5,0.05062397]
[1738155495773,0.8306,3121.8,3121.5,3.25419397]
[1738155496867,0.8306,3121.8,3121.5,0.05062397]
[1738155497074,1.554294,3121.8,3121.1,3.20393]
[1738155497288,3.20356,3121.6,3121.1,3.20393]
[1738155497683,3.20356,3121.6,3121.1,6.40786]
[1738155498298,4.03392,3121.8,3121.2,3.20382]
[1738155498806,4.03392,3121.8,3121.3,0.05033604]
[1738155499393,4.03392,3121.8,3121.3,3.25410604]
[1738155499816,4.03392,3121.8,3121.3,0.05033604]
[1738155499817,1.554305,3121.8,3121.3,0.05033604]
[1738155499972,6.96499,3121.4,3121.3,0.05033604]
[1738155500176,3.20458,3120.6,3120.0,3.20509]
[1738155500378,3.20478,3120.4,3119.8,3.20523]
[1738155500676,3.20478,3120.4,3119.6,3.20551]
[1738155500677,3.20502,3120.1,3119.6,3.20551]
[1738155500956,0.7746,3120.0,3119.6,3.20551]
[1738155501071,0.7746,3120.0,3119.6,3.20546]
[1738155501278,3.20485,3120.3,3119.6,3.20546]
[1738155501672,0.7746,3120.4,3119.4,0.03205417]
[1738155501899,3.7746,3120.4,3119.9,3.20516]
[1738155502216,3.7746,3120.4,3119.4,0.03205417]
[1738155502217,0.7746,3120.4,3119.4,0.03205417]
[1738155502399,0.7746,3120.4,3120.1,3.20495]
[1738155502801,0.7746,3120.4,3119.9,3.20517]
[1738155503001,0.7746,3120.4,3120.0,3.2051]
[1738155503202,3.20483,3120.3,3119.7,3.20536]
[1738155503402,3.20483,3120.3,3119.8,3.20532]
[1738155503607,0.397943,3120.3,3119.7,3.20542]
[1738155503821,3.602813,3120.3,3119.7,3.20542]
[1738155503992,6.807713,3120.3,3119.7,3.20542]
[1738155504192,3.602813,3120.3,3119.7,3.20542]
[1738155505417,3.602813,3120.3,3119.8,3.20531]
[1738155505623,0.7377413,3120.2,3119.8,3.20531]
[1738155506123,0.7377413,3120.2,3119.7,3.20542]
[1738155506321,0.7377413,3120.2,3119.4,0.03205222]
[1738155506622,0.7377413,3120.2,3119.8,3.20531]
[1738155506823,0.7377413,3120.2,3119.9,3.20522]
[1738155507689,0.397943,3120.3,3120.0,3.20507]
[1738155507891,0.397943,3120.3,3120.0,3.24769809]
[1738155509440,0.397943,3120.3,3120.0,0.04262809]
[1738155509818,0.397943,3120.3,3119.9,6.41026]
[1738155510126,0.397943,3120.3,3120.0,0.04256023]
[1738155510425,0.397943,3120.3,3120.0,3.24765023]
[1738155510724,0.7746,3120.4,3120.1,3.20499]
[1738155510930,4.02594,3120.7,3120.1,3.20494]
[1738155511132,7.23043,3120.7,3120.1,3.20494]
[1738155511294,4.02594,3120.7,3120.2,0.04247728]
[1738155511626,0.402594,3120.6,3120.2,0.04247728]
[1738155512606,0.8215,3120.7,3120.2,0.04247728]
[1738155512807,0.8215,3120.7,3120.3,3.20481]
[1738155513311,0.8215,3120.7,3120.4,0.04239435]
[1738155514299,3.8215,3120.7,3120.4,0.04239435]
[1738155514499,7.02591,3120.7,3120.2,3.20489]
[1738155514699,7.02591,3120.7,3120.5,0.04235289]
[1738155514912,8.11441901,3120.7,3120.2,3.20489]
[1738155515235,8.11441901,3120.7,3120.6,0.04281756]
[1738155515398,8.11441901,3120.7,3120.2,3.20489]
[1738155515594,8.11441901,3120.7,3120.6,0.04281756]
[1738155515826,8.11441901,3120.7,3120.2,3.20489]
[1738155516336,8.11441901,3120.7,3120.3,0.04294195]
[1738155516820,8.11441901,3120.7,3120.2,3.20489]
[1738155517023,4.91000901,3120.7,3120.4,0.04290048]
[1738155517222,4.91000901,3120.7,3120.3,3.24769195]
[1738155517423,4.91000901,3120.7,3120.5,0.04285902]
[1738155517731,3.98912,3121.1,3120.6,0.04281756]
[1738155517897,0.7851,3121.1,3120.6,0.04281756]
[1738155518097,3.20426,3120.9,3120.6,0.04281756]
[1738155518333,3.20426,3120.9,3120.4,3.20469]
[1738155518536,3.20426,3120.9,3120.7,0.04267693]
[1738155518724,4.2236,3120.9,3120.4,3.20469]
[1738155518919,4.2236,3120.9,3120.8,0.04263547]
[1738155519124,1.01934,3120.9,3120.4,3.20465]
[1738155519344,3.0,3121.0,3120.8,0.04263547]
[1738155519629,3.0,3121.0,3120.5,3.20458]
[1738155519630,6.2041,3121.0,3120.5,3.20458]
[1738155520224,3.0,3121.0,3120.6,0.04271838]
[1738155520451,3.20424,3120.9,3120.4,3.20471]
[1738155520807,3.20424,3120.9,3120.5,3.24736984]
[1738155522252,3.0,3121.0,3120.6,3.20447]
[1738155522408,3.0,3121.2,3120.7,3.20434]
[1738155522614,0.7567,3121.4,3120.9,3.20416]
[1738155522848,3.96041,3121.4,3120.9,3.20416]
[1738155523140,3.96041,3121.4,3121.0,0.04245341]
[1738155523708,4.676815,3121.4,3121.0,0.04245341]
[1738155523913,3.0,3121.5,3121.0,3.24647341]
[1738155524121,3.0,3121.5,3121.1,3.20399]
[1738155524326,3.0,3121.5,3121.2,3.20387]
[1738155524552,3.0,3121.5,3121.2,3.24623008]
[1738155525421,3.0,3121.5,3121.2,6.45010008]
[1738155525616,3.0,3121.5,3121.2,3.24623008]
[1738155525811,3.0,3121.7,3121.2,3.24623008]
[1738155526237,3.97404,3121.8,3121.2,3.24623008]
[1738155526443,3.97404,3121.8,3121.3,3.20376]
[1738155526830,3.97404,3121.8,3121.4,0.04207891]
[1738155527419,3.6329195,3121.9,3121.4,3.24569891]
[1738155528654,3.0,3121.9,3121.4,3.24569891]
[1738155528831,3.20313,3122.0,3121.4,3.24569891]
[1738155529217,6.20315,3122.0,3121.4,3.24569891]
[1738155529424,3.0,3122.0,3121.4,3.24569891]
[1738155530456,3.20318,3121.9,3121.4,3.24569891]
[1738155530979,6.40645,3121.9,3121.4,3.24569891]
[1738155531928,3.20337,3121.8,3121.4,0.04207891]
[1738155532460,3.20337,3121.8,3121.1,0.7865]
[1738155532957,3.20348,3121.6,3121.2,0.04161912]
[1738155533270,3.20374,3121.4,3121.2,0.04161912]
[1738155533841,3.20379,3121.3,3121.2,0.04161912]
[1738155535861,3.20379,3121.3,3120.7,0.7647]
[1738155535862,3.20424,3120.9,3120.7,0.7647]
[1738155536027,3.20424,3120.9,3120.8,0.04168058]
[1738155536229,3.20424,3120.9,3120.5,1.0948]
[1738155536524,3.20424,3120.9,3120.6,0.04176349]
[1738155536751,3.20438,3120.8,3120.6,0.04176349]
[1738155538663,3.2044,3120.7,3120.6,0.04176349]
[1738155539030,3.2044,3120.7,3120.3,0.8238]
[1738155539230,3.2044,3120.7,3120.4,0.04188815]
[1738155542272,3.20424,3120.9,3120.4,0.04188815]
[1738155542476,3.20433,3120.8,3120.4,0.04188815]
[1738155544440,3.20449,3120.7,3120.4,0.04188815]
[1738155546379,3.20433,3120.8,3120.4,0.04188815]
[1738155548881,6.4087,3120.8,3120.4,0.04188815]
[1738155549376,3.2046,3120.6,3120.4,0.04188815]
[1738155549584,3.20461,3120.5,3120.4,0.04188815]
[1738155549743,6.20461,3120.5,3120.4,0.04188815]
[1738155549942,3.20507,3120.1,3119.7,0.7733]
[1738155550183,3.20507,3120.1,3119.4,3.97904]
[1738155550184,7.20357,3120.1,3119.4,3.97904]
[1738155550382,3.99847,3120.1,3119.8,0.04095524]
[1738155550554,3.20519,3120.0,3119.5,0.748181]
[1738155550748,3.20519,3120.0,3119.9,0.04091377]
[1738155550949,3.20519,3120.0,3119.5,0.748181]
[1738155551181,3.20519,3120.0,3119.9,0.04091377]
[1738155551447,3.20519,3120.0,3119.5,0.748181]
[1738155552089,3.20519,3120.0,3119.6,0.04103821]
[1738155562106,3.20534,3119.8,3119.6,0.04103821]
[1738155562773,3.20512,3120.0,3119.4,0.7733]
[1738155562980,3.20512,3120.0,3119.7,0.04133079]
[1738155563199,3.20524,3119.9,3119.4,0.7733]
[1738155563402,3.20512,3120.0,3119.8,0.04128931]
[1738155563599,3.20512,3120.0,3119.4,0.7733]
[1738155563896,6.41033,3120.0,3119.4,0.7733]
[1738155564402,6.41033,3120.0,3119.5,0.04141376]
[1738155565401,3.20512,3120.0,3119.5,0.04141376]
[1738155565605,3.20531,3119.9,3119.5,0.04141376]
[1738155567676,3.20341787,3119.9,3119.5,0.04141376]
[1738155567876,6.20486,3120.3,3119.6,3.96908]
[1738155568077,6.20486,3120.3,3119.7,0.47443032]
[1738155568801,6.20486,3120.3,3119.7,0.44238017]
[1738155569005,3.20495,3120.2,3119.7,0.44238017]
[1738155569174,6.40994,3120.2,3119.7,0.44238017]
[1738155569370,0.7935,3120.4,3119.7,0.04133079]
[1738155569576,3.20533,3119.8,3119.7,0.04133079]
[1738155569988,3.20533,3119.8,3119.4,0.8248]
[1738155570216,3.20533,3119.8,3119.7,0.04201962]
[1738155570408,3.20544,3119.7,3119.4,0.8248]
[1738155573196,6.41095,3119.7,3119.4,0.8248]
[1738155573401,3.20544,3119.7,3119.4,0.8248]
[1738155573800,3.20544,3119.7,3119.5,0.04216001]
[1738155574892,3.20544,3119.7,3119.2,0.8324]
[1738155575120,3.2056,3119.6,3119.3,0.04227954]
[1738155575320,0.64170161,3119.9,3118.8,0.7818]
[1738155575646,3.2057,3119.5,3118.9,0.04244553]
[1738155576499,3.20589,3119.3,3118.9,0.04244553]
[1738155576701,3.20595,3119.2,3118.9,0.04244553]
[1738155577537,3.20589,3119.3,3118.9,0.04244553]
[1738155587062,6.41183,3119.3,3118.9,0.04244553]
[1738155587443,3.20589,3119.3,3118.9,0.04244553]
[1738155587764,6.4118,3119.3,3118.9,0.04244553]
[1738155587915,3.20589,3119.3,3118.9,0.04244553]
[1738155589660,3.20596,3119.2,3118.9,0.04244553]
[1738155598960,3.2058,3119.4,3119.1,0.8107]
[1738155599337,3.2058,3119.4,3119.2,0.0426239]
[1738155600562,3.20538,3119.8,3119.2,1.37547188]
[1738155600856,3.20566,3119.5,3119.3,0.8107]
[1738155601068,3.20574,3119.4,3119.2,0.0426239]
[1738155601227,3.20584,3119.3,3119.2,0.0426239]
[1738155607174,4.00054,3119.3,3119.2,0.0426239]
[1738155607381,7.00054,3119.3,3119.2,0.0426239]
[1738155607844,3.20584,3119.3,3119.2,0.0426239]
[1738155610576,3.926468,3119.3,3119.2,0.0426239]
[1738155610782,4.689068,3119.3,3119.2,0.0426239]
[1738155613249,3.96844,3119.3,3119.2,0.0426239]
[1738155614291,3.20584,3119.3,3119.2,0.0426239]
[1738155614496,3.20571,3119.5,3119.2,0.0426239]
[1738155614656,3.0,3119.5,3119.2,0.7980239]
[1738155615187,3.2056,3119.6,3119.2,0.7980239]
[1738155615370,3.2056,3119.6,3119.2,1.19843429]
[1738155615575,3.2056,3119.6,3119.2,0.7980239]
[1738155616255,3.20536,3119.8,3119.2,4.0039639]
[1738155617052,3.0,3119.9,3119.3,3.2058]
[1738155617354,3.0,3119.9,3119.3,3.20575]
[1738155617778,3.20483,3120.3,3119.7,3.20538]
[1738155617964,3.20493,3120.2,3119.8,0.320538]
[1738155618147,3.20493,3120.2,3119.8,0.36165352]
[1738155618351,3.20493,3120.2,3119.8,0.04111552]
[1738155618593,6.40994,3120.2,3119.6,3.20551]
[1738155618770,6.40994,3120.2,3119.9,0.04076621]
[1738155618970,3.20493,3120.2,3119.6,3.20551]
[1738155619182,3.20493,3120.2,3120.0,0.04072473]
[1738155619368,3.20493,3120.2,3119.6,3.20551]
[1738155619559,3.20493,3120.2,3120.1,0.04068326]
[1738155620091,3.20493,3120.2,3120.0,0.8156]
[1738155620388,3.20493,3120.2,3120.1,0.04061544]
[1738155621065,3.20513,3120.0,3119.7,0.8156]
[1738155621274,3.20513,3120.0,3119.8,0.04070335]
[1738155621657,3.20513,3120.0,3119.7,0.8156]
[1738155621958,3.20513,3120.0,3119.8,0.04071379]
[1738155622357,3.20513,3120.0,3119.7,0.8156]
[1738155622680,3.20503,3120.1,3119.8,0.04071379]
[1738155622874,3.20498,3120.2,3119.8,0.04071379]
[1738155622875,3.20515,3120.0,3119.8,0.04071379]
[1738155623190,3.20515,3120.0,3119.7,0.8156]
[1738155623393,4.613962,3120.0,3119.9,0.04073491]
[1738155623600,4.613962,3120.0,3119.8,0.04077639]
[1738155623601,6.20523,3119.9,3119.8,0.04077639]
[1738155623775,3.20572,3119.5,3119.1,0.7972]
[1738155624154,3.20572,3119.5,3119.2,0.04102531]
[1738155626001,3.20584,3119.3,3119.2,0.04102531]
[1738155626571,3.20584,3119.3,3118.8,0.821]
[1738155626910,3.20584,3119.3,3118.8,4.02734]
[1738155627210,3.20558,3119.6,3118.9,0.04134285]
[1738155627704,3.20558,3119.6,3119.1,3.20604]
[1738155628174,3.20558,3119.6,3119.2,0.04121836]
[1738155628577,6.41119,3119.6,3119.2,0.04121836]
[1738155628807,3.20584,3119.3,3119.2,0.04121836]
[1738155629006,4.03674,3119.3,3119.2,0.04121836]
[1738155629175,3.20618,3119.0,3118.6,0.7993]
[1738155629376,6.41242,3119.0,3118.6,0.7993]
[1738155629585,6.41242,3119.0,3118.7,0.04161892]
[1738155630271,3.2063,3118.9,3118.7,0.04161892]
[1738155630466,3.20636,3118.8,3118.7,0.04161892]
[1738155630665,3.847548,3118.9,3118.4,0.7778]
[1738155630666,3.20652,3118.7,3118.4,0.7778]
[1738155630907,3.20666,3118.6,3118.5,0.04183763]
[1738155631266,3.20669,3118.5,3118.1,0.7778]
[1738155631600,3.20687,3118.3,3118.2,0.04196218]
[1738155631827,3.20681,3118.4,3118.2,0.04196218]
[1738155632030,3.20669,3118.5,3117.8,4.03091]
[1738155632174,3.2069,3118.3,3117.8,4.784457]
[1738155632577,3.20669,3118.5,3117.8,4.784457]
[1738155632819,3.20669,3118.5,3118.0,3.20715]
[1738155633674,3.20669,3118.5,3117.9,3.20726]
[1738155634040,3.20651,3118.7,3117.9,3.20726]
[1738155634041,3.20651,3118.7,3118.1,3.20706]
[1738155634320,3.20677,3118.4,3117.9,3.2072]
[1738155634480,3.20677,3118.4,3117.9,4.0360807]
[1738155634879,3.20663,3118.6,3117.9,4.0360807]
[1738155635098,6.41328,3118.6,3117.9,7.2432807]
[1738155635304,6.41328,3118.6,3117.9,4.0360807]
[1738155635305,3.20668,3118.5,3117.9,4.0360807]
[1738155635684,3.20668,3118.5,3117.9,7.2433007]
[1738155636115,3.20668,3118.5,3118.0,0.04204523]
[1738155636506,3.20663,3118.6,3118.0,3.20718]
[1738155636707,0.771,3118.8,3118.2,0.7963]
[1738155636914,3.20648,3118.7,3118.2,0.7963]
[1738155637220,3.97738,3118.8,3118.3,0.04192066]
[1738155637221,7.18383,3118.8,3118.3,0.04192066]
[1738155637421,3.20647,3118.7,3118.3,0.04192066]
[1738155637634,3.20647,3118.7,3118.2,4.00327]
[1738155637787,3.20647,3118.7,3118.4,0.04217668]
[1738155637986,3.20647,3118.7,3118.3,0.0422182]
[1738155638187,3.20647,3118.7,3118.5,0.04213517]
[1738155638400,3.20647,3118.7,3118.4,0.04217668]
[1738155638600,3.20647,3118.7,3118.6,0.04207799]
[1738155638822,0.771,3118.8,3118.5,0.04211951]
[1738155639115,0.771,3118.8,3118.2,4.00327]
[1738155639116,0.771,3118.8,3118.6,0.04207799]
[1738155639316,3.20646,3118.7,3118.6,0.04207799]
[1738155639618,1.53393925,3118.8,3118.2,4.00319]
[1738155639915,3.20645,3118.8,3118.3,3.20687]
[1738155640116,0.7898,3119.0,3118.3,0.0425992]
[1738155640285,0.0075,3119.7,3118.3,0.0425992]
[1738155640286,3.99577,3119.2,3118.5,0.8126]
[1738155640488,3.20611,3119.1,3118.5,0.8126]
[1738155640696,3.20646,3118.7,3118.6,0.04247465]
[1738155641091,3.20646,3118.7,3118.0,4.01971]
[1738155641092,3.20646,3118.7,3118.1,3.20707]
[1738155641504,3.20646,3118.7,3118.2,0.04260417]
[1738155641724,3.2066,3118.6,3118.2,0.04260417]
[1738155641983,3.2066,3118.6,3118.1,3.20706]
[1738155642203,3.2066,3118.6,3118.3,0.04256265]
[1738155642408,3.2066,3118.6,3118.2,0.04260417]
[1738155642585,3.2066,3118.6,3118.4,0.04252113]
[1738155642785,3.2066,3118.6,3118.3,0.04256265]
[1738155643012,3.2066,3118.6,3118.5,0.04247962]
[1738155643685,3.2066,3118.6,3118.1,3.20707]
[1738155643888,3.2066,3118.6,3118.2,0.04260417]
[1738155644294,3.2066,3118.6,3118.0,4.01975]
[1738155644498,3.20646,3118.7,3118.3,0.04256265]
[1738155644499,3.2067,3118.5,3118.3,0.04256265]
[1738155644695,3.2067,3118.5,3118.0,4.01975]
[1738155644906,3.2067,3118.5,3118.0,3.20715]
[1738155644907,0.7772,3118.4,3118.0,3.20715]
[1738155645118,0.7772,3118.4,3117.8,4.01532]
[1738155645326,0.7772,3118.4,3117.8,4.446552]
[1738155645327,3.20689,3118.3,3117.8,4.446552]
[1738155645843,3.20698,3118.2,3117.8,1.239232]
[1738155646047,3.20698,3118.2,3117.8,0.808]
[1738155647004,3.20689,3118.3,3117.8,0.808]
[1738155647212,3.20689,3118.3,3117.8,4.01532]
[1738155648349,3.20689,3118.3,3117.8,0.808]
[1738155648695,3.20689,3118.3,3117.8,4.01532]
[1738155648945,3.207,3118.2,3117.8,0.808]
[1738155649234,3.98405,3118.4,3117.8,4.01538]
[1738155649593,3.98405,3118.4,3117.9,3.20724]
[1738155649794,3.20688,3118.3,3117.8,4.01529]
[1738155649994,3.20688,3118.3,3117.8,4.737566]
[1738155650289,3.20699,3118.2,3117.8,0.808]
[1738155650492,0.7772,3118.4,3117.5,0.776]
[1738155650726,0.7772,3118.4,3116.8,2.88792991]
[1738155650727,3.99466,3117.9,3117.4,3.20769]
[1738155650929,3.2074,3117.8,3117.2,7.20349]
[1738155651131,3.2074,3117.8,3117.5,0.04315076]
[1738155651368,3.2074,3117.8,3117.3,3.20781]
[1738155651537,3.2074,3117.8,3117.6,0.04310922]
[1738155651736,0.78314082,3117.8,3117.2,0.7876]
[1738155651942,0.7873,3117.9,3116.0,0.43272531]
[1738155651943,3.20869,3116.6,3116.0,3.20922]
[1738155652127,3.20869,3116.6,3115.9,0.7876]
[1738155652128,3.20886,3116.4,3115.9,0.7876]
[1738155652463,3.20886,3116.4,3115.8,3.20937]
[1738155652464,3.20892,3116.4,3115.8,3.20937]
[1738155652761,3.2089,3116.4,3115.8,3.20937]
[1738155653325,3.2089,3116.4,3115.6,3.99722]
[1738155653326,0.7873,3117.0,3115.6,0.7928]
[1738155653552,3.99552,3117.0,3116.4,0.7928]
[1738155653758,3.20812,3117.1,3116.4,4.00154]
[1738155653968,0.65137172,3117.3,3116.6,3.20854]
[1738155654175,3.20783,3117.4,3116.8,3.20839]
[1738155654373,3.20783,3117.4,3116.6,3.20854]
[1738155654374,3.20798,3117.3,3116.6,3.20854]
[1738155654575,3.20783,3117.4,3116.7,3.529334]
[1738155654936,3.0,3117.5,3116.7,0.320854]
[1738155655140,3.20741,3117.8,3117.2,3.20793]
[1738155656739,3.20741,3117.8,3117.1,0.7971]
[1738155656934,0.8113,3117.9,3117.1,0.7971]
[1738155657141,4.02359,3118.6,3117.8,3.20734]
[1738155657491,0.817,3118.6,3117.9,3.20727]
[1738155657783,3.20667,3118.5,3117.9,3.20727]
[1738155657983,3.20647,3118.7,3118.1,3.20704]
[1738155658271,0.720188,3119.1,3118.5,3.20664]
[1738155658272,3.20608,3119.1,3118.5,3.20664]
[1738155658463,3.20608,3119.1,3118.5,4.02614]
[1738155659098,3.20608,3119.1,3118.5,0.8195]
[1738155660415,3.20626,3118.9,3118.5,1.222136]
[1738155661214,0.0075,3119.3,3118.2,0.8233]
[1738155661418,3.20663,3118.6,3117.9,0.8233]
[1738155661618,3.20669,3118.5,3117.9,4.03052]
[1738155662312,3.20669,3118.5,3117.9,0.8233]
[1738155662515,0.8295,3118.8,3118.0,3.6504084]
[1738155662705,3.20617,3119.0,3118.4,3.2067]
[1738155662903,0.8031,3119.2,3118.2,3.20695]
[1738155662904,3.20626,3118.9,3118.2,3.20695]
[1738155663085,3.20647,3118.7,3118.2,3.20695]
[1738155663698,6.4126,3118.9,3118.2,3.20695]
[1738155663996,6.4126,3118.9,3118.2,3.89269084]
[1738155664208,3.20641,3118.8,3118.2,3.89269084]
[1738155664519,3.0,3119.1,3118.0,3.6503884]
[1738155665218,3.20655,3118.7,3118.0,3.6503884]
[1738155665515,3.20655,3118.7,3118.1,3.20705]
[1738155666185,3.20655,3118.7,3118.2,0.03984316]
[1738155666389,3.20655,3118.7,3118.1,3.20705]
[1738155666585,3.20629,3118.9,3118.3,0.03980163]
[1738155666785,4.00908,3119.2,3118.6,3.20654]
[1738155667026,3.20598,3119.2,3118.6,3.20648]
[1738155667222,3.20584,3119.4,3118.8,3.20632]
[1738155667397,6.20588,3119.3,3118.8,3.20632]
[1738155667602,6.20588,3119.3,3118.9,0.03954212]
[1738155668327,3.20597,3119.2,3118.9,0.03954212]
[1738155668512,3.20597,3119.2,3118.7,3.20644]
[1738155668713,3.0,3119.3,3118.8,3.24591363]
[1738155669096,3.0,3119.3,3118.9,0.828]
[1738155669426,3.0,3119.3,3119.0,0.03933878]
[1738155669926,3.20584,3119.4,3119.0,0.03933878]
[1738155670429,3.20557,3119.6,3119.0,0.44669766]
[1738155670594,3.20569,3119.5,3119.0,0.44669766]
[1738155670926,3.20586,3119.3,3119.0,0.03933878]
[1738155671107,3.20605,3119.1,3119.0,0.03933878]
[1738155671309,3.20605,3119.1,3118.5,4.00241]
[1738155671489,6.41219,3119.1,3118.6,0.0395048]
[1738155671695,3.20605,3119.1,3118.6,0.0395048]
[1738155671902,3.20616,3119.0,3118.6,0.0395048]
[1738155672103,3.20646,3118.7,3118.6,0.0395048]
[1738155672291,3.20637,3118.8,3117.9,0.7958]
[1738155672510,6.4137,3118.4,3118.0,0.03807503]
[1738155672713,3.0,3118.8,3117.9,4.00307]
[1738155672911,3.20673,3118.5,3118.0,0.03807503]
[1738155673120,3.20673,3118.5,3117.9,4.00307]
[1738155673425,3.20673,3118.5,3118.0,0.03807503]
[1738155673596,6.41349,3118.5,3118.0,0.03807503]
[1738155673802,6.41349,3118.5,3117.9,4.724118]
[1738155674131,6.41349,3118.5,3118.0,0.03807503]
[1738155674539,6.41349,3118.5,3117.9,4.724118]
[1738155674904,3.20673,3118.5,3118.0,0.03836738]
[1738155675241,3.0,3118.8,3117.9,4.724118]
[1738155675242,3.20696,3118.3,3117.9,0.7958]
[1738155675413,0.8111,3118.4,3117.6,3.99771]
[1738155675620,0.8111,3118.7,3118.0,0.03836738]
[1738155675936,9.41456,3117.9,3116.9,3.99844]
[1738155676118,3.2078,3117.4,3116.9,3.99844]
[1738155676311,3.2077,3117.5,3116.9,3.99841]
[1738155676515,3.20737,3117.9,3116.9,0.7902]
[1738155676715,3.86277087,3118.2,3117.6,3.20757]
[1738155677238,3.20707,3118.2,3117.6,3.20757]
[1738155677443,3.2071,3118.1,3117.6,3.20757]
[1738155678342,0.8111,3118.4,3117.8,3.20738]
[1738155678647,3.84662322,3118.5,3117.9,3.20722]
[1738155679233,3.84662322,3118.5,3117.6,3.928092]
[1738155679537,3.20693,3118.3,3117.8,6.41476]
[1738155679745,3.20693,3118.3,3117.8,3.20738]
[1738155679908,3.20693,3118.3,3117.9,0.320738]
[1738155680304,3.98182,3118.7,3117.9,0.320738]
[1738155680511,3.20644,3118.8,3118.0,0.8138]
[1738155681012,3.20644,3118.8,3118.3,3.20683]
[1738155681205,3.20644,3118.8,3118.0,0.8138]
[1738155681206,3.20644,3118.8,3118.2,3.20689]
[1738155681422,3.20625,3118.9,3118.4,0.03702598]
[1738155681723,3.20641,3118.8,3118.5,0.03698447]
[1738155681945,3.20648,3118.7,3118.2,3.20499786]
[1738155682145,3.20625,3118.9,3118.6,0.03694296]
[1738155682346,0.8139,3119.9,3118.7,3.20646]
[1738155682518,0.015,3119.8,3118.7,3.20646]
[1738155682724,3.2059,3119.3,3118.8,3.24330387]
[1738155683358,3.2059,3119.3,3118.8,0.03695387]
[1738155684057,3.2059,3119.3,3118.7,6.41277]
[1738155684369,3.2059,3119.3,3118.8,0.03680768]
[1738155684724,3.2059,3119.3,3118.7,3.20638]
[1738155684925,3.2059,3119.3,3118.8,0.03680768]
[1738155685125,3.2059,3119.3,3118.7,3.20638]
[1738155685460,3.20595,3119.2,3118.8,0.03680768]
[1738155685952,3.2059,3119.3,3118.9,0.03676617]
[1738155686354,3.2059,3119.3,3118.7,6.41278]
[1738155686557,3.2059,3119.3,3119.0,0.03672467]
[1738155686856,3.20601,3119.2,3118.7,3.20638]
[1738155687020,3.20601,3119.2,3119.1,0.03658398]
[1738155687224,3.20601,3119.2,3118.7,3.20638]
[1738155687449,3.20601,3119.2,3119.1,0.03658398]
[1738155687650,3.847201,3119.2,3118.7,3.20638]
[1738155687959,3.20601,3119.2,3118.7,3.20638]
[1738155688259,3.20578,3119.4,3118.8,3.24299761]